bitfinex/quotes_BTCUSD_20251213
["timestamp","ask_amount","ask_price","bid_price","bid_amount"]
[1765631654445,0.001,90387.0,90386.0,0.25663155]
[1765631656697,0.001,90387.0,90386.0,0.36733155]
[1765631660527,0.001,90387.0,90386.0,0.25663155]
[1765631670000,0.001,90387.0,90386.0,0.36733155]
[1765631671875,0.0371492,90393.0,90392.0,0.33195851]
[1765631672711,0.0371492,90393.0,90392.0,0.36518148]
[1765631673963,0.0371492,90393.0,90392.0,0.36618148]
[1765631677407,0.0371492,90393.0,90392.0,0.36813532]
[1765631680842,0.0371492,90393.0,90392.0,0.36113532]
[1765631686090,0.0321492,90393.0,90392.0,0.36113532]
[1765631694378,0.0321492,90393.0,90392.0,0.25043532]
[1765631694591,0.0321492,90393.0,90392.0,0.36113532]
[1765631700529,0.08571207,90393.0,90392.0,0.03617681]
[1765631700734,0.05356287,90393.0,90392.0,0.00295384]
[1765631701258,0.27481894,90393.0,90392.0,0.00295384]
[1765631701500,0.05356287,90393.0,90392.0,0.00295384]
[1765631701749,0.05356287,90393.0,90392.0,0.00195384]
[1765631702224,0.05456287,90393.0,90392.0,0.00195384]
[1765631702814,0.05656287,90393.0,90392.0,0.00195384]
[1765631706643,0.03271287,90393.0,90392.0,0.11265384]
[1765631707549,0.03171287,90393.0,90392.0,0.11265384]
[1765631707952,0.03271287,90393.0,90392.0,0.11265384]
[1765631708890,0.03071287,90393.0,90392.0,0.11265384]
[1765631709281,0.03171287,90393.0,90392.0,0.11265384]
[1765631709475,0.01589287,90393.0,90392.0,0.11265384]
[1765631718818,0.01589287,90393.0,90392.0,0.00195384]
[1765631719235,0.03974287,90393.0,90392.0,0.00195384]
[1765631719433,0.05556287,90393.0,90392.0,0.00195384]
[1765631722027,0.08321987,90393.0,90392.0,0.00195384]
[1765631745046,0.19391987,90393.0,90392.0,0.00195384]
[1765631745204,0.08321987,90393.0,90392.0,0.00195384]
[1765631745405,0.19391987,90393.0,90392.0,0.00195384]
[1765631745605,0.08321987,90393.0,90392.0,0.00195384]
[1765631747308,0.09356262,90393.0,90392.0,0.00195384]
[1765631752309,0.20426262,90393.0,90392.0,0.00195384]
[1765631752730,0.09356262,90393.0,90392.0,0.00195384]
[1765631752899,0.20426262,90393.0,90392.0,0.00195384]
[1765631753133,0.09356262,90393.0,90392.0,0.00195384]
[1765631757492,0.09356735,90393.0,90392.0,0.00195384]
[1765631763385,0.06971735,90393.0,90392.0,0.00195384]
[1765631763583,0.05936987,90393.0,90392.0,0.00195384]
[1765631763804,0.05498287,90393.0,90392.0,0.00195384]
[1765631764029,0.08263987,90393.0,90392.0,0.00195384]
[1765631764226,0.05498287,90393.0,90392.0,0.00195384]
[1765631764588,0.00361287,90393.0,90392.0,0.00195384]
[1765631765973,0.002,90393.0,90392.0,0.00195384]
[1765631766183,0.002,90393.0,90392.0,0.11265384]
[1765631767173,0.002,90393.0,90392.0,0.13009384]
[1765631767400,0.002,90393.0,90392.0,0.16325345]
[1765631767658,0.002,90393.0,90392.0,0.45395345]
[1765631768218,0.001,90393.0,90392.0,0.45395345]
[1765631768419,0.03315961,90416.0,90414.0,0.22120369]
[1765631768620,0.03315961,90420.0,90418.0,0.01105974]
[1765631768822,0.04421911,90420.0,90416.0,0.23225976]
[1765631769222,0.04421911,90420.0,90417.0,0.01105986]
[1765631769632,0.04421911,90420.0,90417.0,0.01117581]
[1765631769846,0.06028783,90421.0,90417.0,0.01117581]
[1765631770048,0.03315961,90419.0,90417.0,0.01117581]
[1765631770225,0.03315961,90420.0,90418.0,0.2322535]
[1765631770427,0.23224417,90423.0,90418.0,0.2322535]
[1765631770428,0.03315961,90431.0,90428.0,0.01105852]
[1765631770680,0.01105766,90435.0,90432.0,0.01105803]
[1765631771517,0.04453961,90436.0,90432.0,0.01105803]
[1765631771734,0.03315961,90436.0,90435.0,0.22115331]
[1765631772358,0.03790062,90441.0,90438.0,0.01105729]
[1765631772564,0.03790062,90441.0,90439.0,0.22114129]
[1765631773778,0.03990062,90441.0,90439.0,0.22114129]
[1765631775191,0.04090062,90441.0,90439.0,0.22114129]
[1765631775421,0.03890062,90441.0,90439.0,0.22114129]
[1765631775782,0.03990062,90441.0,90439.0,0.22114129]
[1765631776787,0.03315961,90440.0,90439.0,0.22114129]
[1765631778055,0.03890062,90441.0,90439.0,0.22114129]
[1765631778235,0.03790062,90441.0,90439.0,0.22114129]
[1765631778665,0.03890062,90441.0,90439.0,0.22114129]
[1765631778865,0.03790062,90441.0,90439.0,0.22114129]
[1765631779066,0.03890062,90441.0,90439.0,0.22114129]
[1765631780222,0.03990062,90441.0,90439.0,0.22114129]
[1765631780571,0.03990062,90441.0,90440.0,0.00052423]
[1765631781377,0.26265213,90441.0,90440.0,0.00052423]
[1765631781698,0.27798213,90441.0,90440.0,0.00052423]
[1765631781895,0.30025213,90441.0,90440.0,0.00052423]
[1765631782203,0.04151349,90441.0,90440.0,0.00052423]
[1765631782519,0.03890062,90441.0,90440.0,0.22166531]
[1765631782643,0.03990062,90441.0,90440.0,0.22166531]
[1765631785244,0.03990062,90441.0,90440.0,0.00052423]
[1765631785438,0.30000926,90441.0,90440.0,0.00052423]
[1765631786124,0.30162213,90441.0,90440.0,0.00052423]
[1765631794406,0.03990062,90441.0,90440.0,0.00052423]
[1765631795223,0.30000926,90441.0,90440.0,0.00052423]
[1765631795517,0.23224492,90422.0,90418.0,0.01105974]
[1765631795691,0.03315961,90419.0,90417.0,0.01117581]
[1765631795891,0.03315961,90419.0,90417.0,0.00011595]
[1765631796092,0.03315961,90419.0,90418.0,0.00065498]
[1765631797692,0.03315961,90419.0,90418.0,0.22184987]
[1765631797937,0.03315961,90419.0,90418.0,0.22284987]
[1765631799106,0.03315961,90419.0,90418.0,0.22484987]
[1765631800606,0.03315961,90419.0,90418.0,0.33554987]
[1765631801656,0.01105888,90425.0,90422.0,0.01105925]
[1765631801857,0.01105778,90434.0,90424.0,0.01105901]
[1765631802065,0.01105778,90434.0,90429.0,0.1107]
[1765631802066,0.01105815,90431.0,90429.0,0.1107]
[1765631802465,0.02139984,90431.0,90428.0,0.01105852]
[1765631804621,0.02139972,90432.0,90429.0,0.01105839]
[1765631804807,0.01034169,90434.0,90432.0,0.22116065]
[1765631804984,0.02139923,90436.0,90433.0,0.01105791]
[1765631805180,0.01034169,90436.0,90433.0,0.01105791]
[1765631805448,0.03574456,90436.0,90433.0,0.01105791]
[1765631806070,0.02540287,90436.0,90433.0,0.01105791]
[1765631806575,0.02676,90434.0,90430.0,0.01105827]
[1765631806776,0.01518,90433.0,90430.0,0.01105827]
[1765631807029,0.04931169,90433.0,90430.0,0.01105827]
[1765631807329,0.04931169,90433.0,90432.0,0.00023814]
[1765631807531,0.0365796,90433.0,90432.0,0.00023814]
[1765631807708,0.03819247,90433.0,90432.0,0.00023814]
[1765631808111,0.06198247,90433.0,90432.0,0.00023814]
[1765631809498,0.05164078,90433.0,90432.0,0.00023814]
[1765631809705,0.05192248,90433.0,90432.0,0.00023814]
[1765631809921,0.04158287,90433.0,90432.0,0.00023814]
[1765631810326,0.04058287,90433.0,90432.0,0.00023814]
[1765631810527,0.26174107,90433.0,90432.0,0.00023814]
[1765631810840,0.27308383,90433.0,90432.0,0.00023814]
[1765631811050,0.26274107,90433.0,90432.0,0.00023814]
[1765631811246,0.27308422,90433.0,90432.0,0.00023814]
[1765631811468,0.26274107,90433.0,90432.0,0.00023814]
[1765631815014,0.27308777,90433.0,90432.0,0.00023814]
[1765631815397,0.26274107,90433.0,90432.0,0.00023814]
[1765631817716,0.04158287,90433.0,90432.0,0.00023814]
[1765631818067,0.00261287,90433.0,90432.0,0.00023814]
[1765631819976,0.04379287,90433.0,90432.0,0.00023814]
[1765631821915,0.00261287,90433.0,90432.0,0.22139879]
[1765631822758,0.00261287,90433.0,90432.0,0.33209879]
[1765631822967,0.00261287,90433.0,90432.0,0.22139879]
[1765631826793,0.001,90433.0,90432.0,0.22139879]
[1765631826987,0.001,90433.0,90432.0,0.00023814]
[1765631843768,0.001,90433.0,90432.0,0.11093814]
[1765631844073,0.001,90433.0,90432.0,0.00023814]
[1765631855780,0.001,90433.0,90432.0,0.11093814]
[1765631858008,0.001,90433.0,90432.0,0.00023814]
[1765631862261,0.001,90433.0,90432.0,0.01129752]
[1765631862454,0.001,90433.0,90432.0,0.02873752]
[1765631862614,0.001,90433.0,90432.0,0.01767814]
[1765631863600,0.03790062,90441.0,90438.0,0.01105729]
[1765631864744,0.03790062,90441.0,90439.0,0.22114353]
[1765631865315,0.03890062,90441.0,90439.0,0.22114353]
[1765631866925,0.03790062,90441.0,90439.0,0.22114353]
[1765631867361,0.03890062,90441.0,90439.0,0.22114353]
[1765631872256,0.03890062,90441.0,90438.0,0.01105729]
[1765631872473,0.03890062,90441.0,90438.0,0.23220221]
[1765631872826,0.03890062,90441.0,90439.0,0.22114136]
[1765631873670,0.03790062,90441.0,90439.0,0.22114136]
[1765631874087,0.03890062,90441.0,90439.0,0.22114136]
[1765631874646,0.03890062,90441.0,90440.0,0.22114108]
[1765631874832,0.03790062,90441.0,90440.0,0.22114108]
[1765631874960,0.03790062,90441.0,90439.0,0.22114353]
[1765631875224,0.01105717,90439.0,90435.0,0.01105766]
[1765631875436,0.01105766,90435.0,90432.0,0.00023814]
[1765631875658,0.02719,90433.0,90432.0,0.00023814]
[1765631875869,0.2483482,90433.0,90432.0,0.00023814]
[1765631876082,0.02719,90433.0,90432.0,0.00023814]
[1765631877780,0.2721282,90433.0,90432.0,0.00023814]
[1765631878204,0.2721282,90433.0,90432.0,0.00123814]
[1765631878422,0.2721282,90433.0,90432.0,0.00223814]
[1765631879720,0.2483482,90433.0,90432.0,0.00223814]
[1765631879945,0.2721282,90433.0,90432.0,0.00223814]
[1765631880173,0.2721282,90433.0,90432.0,0.00023814]
[1765631881847,0.01267053,90435.0,90432.0,0.00023814]
[1765631882049,0.03315961,90434.0,90432.0,0.00023814]
[1765631882288,0.00161287,90435.0,90432.0,0.01129617]
[1765631883172,0.00161287,90435.0,90433.0,0.2211582]
[1765631884547,0.00161287,90435.0,90433.0,0.3318582]
[1765631884770,0.00161287,90435.0,90434.0,0.1107]
[1765631889924,0.27009749,90441.0,90437.0,0.01105742]
[1765631890117,0.01105705,90440.0,90437.0,0.01105742]
[1765631891507,0.001,90440.0,90437.0,0.23220576]
[1765631891678,0.002,90440.0,90437.0,0.23220576]
[1765631892874,0.01305705,90440.0,90437.0,0.01105742]
[1765631894244,0.01105717,90439.0,90435.0,0.22115331]
[1765631894446,0.01305705,90440.0,90437.0,0.01105742]
[1765631894969,0.002,90440.0,90437.0,0.23220398]
[1765631895176,0.001,90440.0,90437.0,0.23220398]
[1765631895388,0.001,90440.0,90438.0,0.22114366]
[1765631895588,0.001,90439.0,90438.0,0.33184366]
[1765631896011,0.001,90439.0,90438.0,0.1107]
[1765631896808,0.001,90439.0,90437.0,0.23220405]
[1765631897145,0.001,90440.0,90437.0,0.01105742]
[1765631897454,0.01205705,90440.0,90436.0,0.12175754]
[1765631897610,0.03315961,90437.0,90436.0,0.12175754]
[1765631898800,0.01105693,90441.0,90440.0,0.1107]
[1765631899353,0.23219813,90440.0,90439.0,0.1107]
[1765631899700,0.01105705,90440.0,90439.0,0.1107]
[1765631900406,0.01105705,90440.0,90437.0,0.01105742]
[1765631901001,0.01105632,90446.0,90440.0,0.22113929]
[1765631901204,0.01105644,90445.0,90442.0,0.0110568]
[1765631901407,0.23218332,90446.0,90441.0,0.01105693]
[1765631901957,0.01105644,90445.0,90441.0,0.01105693]
[1765631902235,0.01105644,90445.0,90441.0,0.2321939]
[1765631902372,0.04421531,90451.0,90448.0,0.01105607]
[1765631903314,0.04421531,90451.0,90446.0,0.01105632]
[1765631903626,0.23217703,90449.0,90444.0,0.34288632]
[1765631904069,0.01105607,90448.0,90445.0,0.01105644]
[1765631904240,0.002,90446.0,90445.0,0.01105644]
[1765631904442,0.04024632,90446.0,90442.0,0.0110568]
[1765631904620,0.02378,90445.0,90443.0,0.01105668]
[1765631904822,0.02378,90445.0,90443.0,0.23218851]
[1765631905605,0.01148,90446.0,90444.0,0.22112967]
[1765631905770,0.01248,90446.0,90444.0,0.2211313]
[1765631905972,0.01148,90446.0,90444.0,0.2211313]
[1765631906306,0.001,90445.0,90444.0,0.2211313]
[1765631907497,0.002,90445.0,90444.0,0.2211313]
[1765631907798,0.001,90445.0,90444.0,0.2211313]
[1765631908100,0.04507583,90450.0,90447.0,0.01105619]
[1765631908876,0.26571759,90451.0,90447.0,0.01105619]
[1765631908877,0.03354604,90451.0,90450.0,0.1107]
[1765631910091,0.00038643,90451.0,90450.0,0.1107]
[1765631911357,0.00138643,90451.0,90450.0,0.1107]
[1765631912052,0.00238643,90451.0,90450.0,0.1107]
[1765631914119,0.00138643,90451.0,90450.0,0.1107]
[1765631914452,0.00238643,90451.0,90450.0,0.1107]
[1765631915281,0.00238643,90451.0,90449.0,0.22111715]
[1765631916397,0.00138643,90451.0,90449.0,0.22111715]
[1765631916605,0.00038643,90451.0,90449.0,0.22111715]
[1765631918298,0.04394235,90457.0,90454.0,0.01105534]
[1765631919550,0.03288738,90457.0,90454.0,0.01105534]
[1765631919775,0.03388738,90457.0,90454.0,0.01105534]
[1765631919977,0.03388738,90457.0,90455.0,0.22110441]
[1765631920836,0.03488738,90457.0,90455.0,0.22110441]
[1765631921016,0.03495996,90457.0,90455.0,0.22110441]
[1765631921224,0.03395996,90457.0,90456.0,0.1107]
[1765631922156,0.03495996,90457.0,90456.0,0.1107]
[1765631922510,0.03395996,90457.0,90456.0,0.1107]
[1765631922921,0.03495996,90457.0,90456.0,0.1107]
[1765631923667,0.03395996,90457.0,90456.0,0.1107]
[1765631924298,0.03495996,90457.0,90455.0,0.22110441]
[1765631925136,0.03295996,90457.0,90456.0,0.1107]
[1765631925294,0.03295996,90457.0,90455.0,0.22110441]
[1765631925504,0.03495996,90457.0,90455.0,0.22110441]
[1765631927120,0.00207258,90457.0,90456.0,0.1107]
[1765631928266,0.00107258,90457.0,90456.0,0.1107]
[1765631928482,7.258e-05,90457.0,90456.0,0.1107]
[1765631929282,7.258e-05,90457.0,90455.0,0.33180441]
[1765631930405,7.258e-05,90457.0,90456.0,0.1107]
[1765631940443,7.258e-05,90457.0,90455.0,0.22110441]
[1765631941904,7.258e-05,90457.0,90456.0,0.1107]
[1765631942136,7.258e-05,90457.0,90455.0,0.22110441]
[1765631942350,7.258e-05,90457.0,90456.0,0.1107]
[1765631943398,7.258e-05,90457.0,90455.0,0.22110441]
[1765631943624,7.258e-05,90457.0,90456.0,0.1107]
[1765631945410,7.258e-05,90457.0,90455.0,0.22110441]
[1765631945647,7.258e-05,90457.0,90456.0,0.1107]
[1765631947727,7.258e-05,90457.0,90456.0,0.12174471]
[1765631948675,7.258e-05,90457.0,90456.0,0.1107]
[1765631951949,7.258e-05,90457.0,90456.0,0.12174471]
[1765631953199,7.258e-05,90457.0,90456.0,0.01104471]
[1765631953385,7.258e-05,90457.0,90456.0,0.12174471]
[1765631954751,7.258e-05,90457.0,90456.0,0.01104471]
[1765631955827,7.258e-05,90457.0,90456.0,0.12174471]
[1765631956031,7.258e-05,90457.0,90456.0,0.15494195]
[1765631956644,7.258e-05,90457.0,90456.0,0.21455585]
[1765631957049,7.258e-05,90457.0,90456.0,0.21655585]
[1765631957387,7.258e-05,90457.0,90456.0,0.15694195]
[1765631958127,7.258e-05,90457.0,90456.0,0.15894195]
[1765631977216,7.258e-05,90457.0,90456.0,0.21855585]
[1765631978219,7.258e-05,90457.0,90456.0,0.15894195]
[1765631983987,7.258e-05,90457.0,90456.0,1.15894195]
[1765631984191,7.258e-05,90457.0,90456.0,1.43859724]
[1765631987165,7.258e-05,90457.0,90456.0,1.43659724]
[1765631987366,7.258e-05,90457.0,90456.0,1.43459724]
[1765631987704,7.258e-05,90457.0,90456.0,1.44159724]
[1765631989455,7.258e-05,90457.0,90456.0,0.44159724]
[1765631989689,7.258e-05,90457.0,90456.0,0.04019724]
[1765631990084,7.258e-05,90457.0,90456.0,0.15089724]
[1765631990223,7.258e-05,90457.0,90456.0,0.14689724]
[1765631990587,7.258e-05,90457.0,90456.0,1.15494195]
[1765631990799,7.258e-05,90457.0,90456.0,1.14489724]
[1765631991014,7.258e-05,90457.0,90456.0,1.14589724]
[1765631991218,7.258e-05,90457.0,90456.0,1.14489724]
[1765631991626,7.258e-05,90457.0,90456.0,1.14389724]
[1765631991773,7.258e-05,90457.0,90456.0,1.14489724]
[1765631992410,7.258e-05,90457.0,90456.0,1.14389724]
[1765631992609,7.258e-05,90457.0,90456.0,1.14489724]
[1765631993041,7.258e-05,90457.0,90456.0,1.14389724]
[1765631993574,7.258e-05,90457.0,90456.0,1.14489724]
[1765631994270,7.258e-05,90457.0,90456.0,1.14589724]
[1765631998858,7.258e-05,90457.0,90456.0,0.14589724]
[1765631999067,7.258e-05,90457.0,90456.0,1.15694195]
[1765631999267,7.258e-05,90457.0,90456.0,1.14589724]
[1765631999890,7.258e-05,90457.0,90456.0,0.14589724]
[1765632000089,7.258e-05,90457.0,90456.0,1.15694195]
[1765632000294,7.258e-05,90457.0,90456.0,1.14589724]
[1765632003966,7.258e-05,90457.0,90456.0,1.43659724]
[1765632004736,7.258e-05,90457.0,90456.0,1.43459724]
[1765632005157,7.258e-05,90457.0,90456.0,1.44059724]
[1765632007563,0.03845971,90483.0,90482.0,0.22103843]
[1765632007883,1.73e-05,90483.0,90482.0,0.22103843]
[1765632009314,0.0010173,90483.0,90482.0,0.22103843]
[1765632010596,0.0030173,90483.0,90482.0,0.22103843]
[1765632015324,0.0030173,90483.0,90482.0,0.25423111]
[1765632015528,0.0020173,90483.0,90482.0,0.36493111]
[1765632016328,0.0020173,90483.0,90482.0,0.33173843]
[1765632016694,1.73e-05,90483.0,90482.0,0.33173843]
[1765632017954,1.73e-05,90483.0,90482.0,0.22103843]
[1765632018966,1.73e-05,90483.0,90482.0,0.33173843]
[1765632025265,1.73e-05,90483.0,90482.0,0.22103843]
[1765632025579,0.0230873,90483.0,90482.0,0.22103843]
[1765632025934,0.0511973,90483.0,90480.0,0.01105216]
[1765632026133,0.0511973,90483.0,90481.0,0.22104088]
[1765632029049,0.0521973,90483.0,90481.0,0.22104088]
[1765632029207,0.0010173,90483.0,90482.0,0.1107]
[1765632030659,1.73e-05,90483.0,90482.0,0.1107]
[1765632031059,0.0010173,90483.0,90482.0,0.1107]
[1765632031496,0.0010173,90483.0,90482.0,0.01102883]
[1765632031998,0.0010173,90483.0,90482.0,0.12172883]
[1765632033543,0.0010173,90483.0,90482.0,0.1107]
[1765632035924,0.0010173,90483.0,90481.0,0.22104088]
[1765632036098,0.0010173,90483.0,90482.0,0.1107]
[1765632036421,0.0010173,90483.0,90482.0,0.15045846]
[1765632037400,1.73e-05,90483.0,90482.0,0.15045846]
[1765632037985,1.73e-05,90483.0,90482.0,0.15145846]
[1765632038488,1.73e-05,90483.0,90482.0,0.15245846]
[1765632042407,1.73e-05,90483.0,90482.0,0.1127]
[1765632047780,0.00163017,90483.0,90482.0,0.002]
[1765632048576,0.00163017,90483.0,90482.0,0.04176149]
[1765632050070,0.00163017,90483.0,90482.0,0.15246149]
[1765632053396,0.00163017,90483.0,90482.0,0.1127]
[1765632056538,1.73e-05,90483.0,90482.0,0.12372883]
[1765632057156,1.73e-05,90483.0,90482.0,0.19524653]
[1765632057361,1.73e-05,90483.0,90482.0,0.13560883]
[1765632062420,1.73e-05,90483.0,90482.0,0.002]
[1765632062622,0.0248773,90483.0,90482.0,0.002]
[1765632062952,1.73e-05,90483.0,90482.0,0.04174356]
[1765632063382,1.73e-05,90483.0,90482.0,0.15244356]
[1765632064511,1.73e-05,90483.0,90482.0,0.16347239]
[1765632064820,1.73e-05,90483.0,90482.0,0.12372883]
[1765632065031,1.73e-05,90483.0,90482.0,0.01302883]
[1765632065194,1.73e-05,90483.0,90482.0,0.12372883]
[1765632065373,1.73e-05,90483.0,90482.0,0.18333041]
[1765632065575,1.73e-05,90483.0,90482.0,0.12372883]
[1765632066031,1.73e-05,90483.0,90482.0,0.21652017]
[1765632066412,1.73e-05,90483.0,90482.0,0.15691667]
[1765632066614,1.73e-05,90483.0,90482.0,0.21651749]
[1765632068107,1.73e-05,90483.0,90482.0,0.21651597]
[1765632068238,1.73e-05,90483.0,90482.0,0.15691667]
[1765632069199,1.73e-05,90483.0,90482.0,0.21651164]
[1765632069872,1.73e-05,90483.0,90482.0,0.15691667]
[1765632073876,1.73e-05,90483.0,90482.0,0.04621667]
[1765632074052,1.73e-05,90490.0,90482.0,1.5445736]
[1765632074268,1.73e-05,90490.0,90489.0,1.4014]
[1765632074717,1.73e-05,90490.0,90489.0,1.48091693]
[1765632074887,1.73e-05,90490.0,90489.0,1.48520752]
[1765632075217,1.73e-05,90490.0,90489.0,1.40582409]
[1765632076942,1.73e-05,90490.0,90489.0,1.41082409]
[1765632077359,1.73e-05,90490.0,90489.0,1.41073096]
[1765632077628,1.73e-05,90490.0,90489.0,1.41473096]
[1765632085819,1.73e-05,90490.0,90489.0,1.30403096]
[1765632086020,1.73e-05,90490.0,90489.0,1.41473096]
[1765632086238,1.73e-05,90490.0,90489.0,1.43217096]
[1765632086847,1.73e-05,90490.0,90489.0,1.32147096]
[1765632087040,1.73e-05,90490.0,90489.0,1.42717096]
[1765632087414,1.73e-05,90490.0,90489.0,1.42317096]
[1765632087616,1.73e-05,90490.0,90489.0,1.42717096]
[1765632088136,1.73e-05,90490.0,90489.0,1.43017096]
[1765632088948,1.73e-05,90490.0,90489.0,1.42617096]
[1765632089575,1.73e-05,90490.0,90489.0,1.43017096]
[1765632091168,1.73e-05,90490.0,90489.0,0.43017096]
[1765632091387,1.73e-05,90490.0,90489.0,1.43017096]
[1765632094446,0.00196917,90490.0,90489.0,1.43017096]
[1765632096263,0.00196917,90490.0,90489.0,0.43017096]
[1765632096594,0.00196917,90490.0,90489.0,1.43017096]
[1765632100320,0.00196917,90490.0,90489.0,1.50955439]
[1765632101188,0.00196917,90490.0,90489.0,1.43017096]
[1765632106474,0.00027856,90520.0,90519.0,0.22094808]
[1765632106823,0.00200728,90520.0,90519.0,0.22094808]
[1765632107356,0.04309728,90520.0,90517.0,0.01104764]
[1765632107557,0.01611,90518.0,90517.0,0.01104764]
[1765632107770,0.01772287,90518.0,90517.0,0.01104764]
[1765632107971,0.04270287,90518.0,90517.0,0.01104764]
[1765632109546,0.00161287,90518.0,90517.0,0.12174764]
[1765632109887,0.00261287,90518.0,90517.0,0.12174764]
[1765632110293,0.00361287,90518.0,90517.0,0.12174764]
[1765632110491,0.00261287,90518.0,90517.0,0.12174764]
[1765632111922,0.00161287,90518.0,90517.0,0.12174764]
[1765632112150,0.00261287,90518.0,90517.0,0.12174764]
[1765632113706,0.02759287,90518.0,90517.0,0.01104764]
[1765632113909,0.01104764,90517.0,90513.0,0.01104813]
[1765632114067,0.02849,90514.0,90513.0,0.23200915]
[1765632114273,0.03953801,90514.0,90511.0,0.01104838]
[1765632114484,0.03953801,90514.0,90508.0,0.01104874]
[1765632114485,0.22097138,90510.0,90505.0,0.03973184]
[1765632114702,0.01104838,90511.0,90502.0,0.03973184]
[1765632114703,0.2209847,90504.0,90502.0,0.03973184]
[1765632115020,0.01104947,90502.0,90499.0,0.27177769]
[1765632115212,0.0237,90503.0,90499.0,0.27177769]
[1765632115420,0.03474947,90502.0,90498.0,0.03973184]
[1765632115746,0.01638,90498.0,90495.0,0.2320551]
[1765632115943,0.01638,90496.0,90495.0,0.2320549]
[1765632116440,0.04008,90496.0,90495.0,0.2320549]
[1765632116654,0.0237,90501.0,90498.0,0.01104996]
[1765632117177,0.0237,90501.0,90500.0,0.22099447]
[1765632117613,0.04008,90501.0,90500.0,0.22099447]
[1765632118255,0.01638,90498.0,90484.0,0.03973184]
[1765632118425,0.01105253,90477.0,90474.0,0.01105289]
[1765632118670,0.01105241,90478.0,90474.0,0.01105289]
[1765632119286,0.0237,90479.0,90475.0,0.01105277]
[1765632119490,0.03475228,90479.0,90476.0,0.01105265]
[1765632120436,0.01105241,90478.0,90475.0,0.01105277]
[1765632120823,0.03475241,90478.0,90475.0,0.01105277]
[1765632121529,0.23310031,90479.0,90476.0,0.23210574]
[1765632121530,0.001,90479.0,90476.0,0.23210574]
[1765632121781,0.001,90479.0,90478.0,0.22104821]
[1765632121939,0.001,90479.0,90478.0,0.23654821]
[1765632122139,0.03730702,90480.0,90478.0,0.36941595]
[1765632122338,0.03730702,90480.0,90479.0,0.0155]
[1765632123341,0.03730702,90480.0,90478.0,0.22204821]
[1765632123890,0.03730702,90480.0,90479.0,0.001]
[1765632124221,0.03730702,90480.0,90479.0,0.002]
[1765632124428,0.01105363,90468.0,90454.0,0.01105534]
[1765632124721,0.01105436,90462.0,90460.0,0.38682845]
[1765632124934,0.01105485,90458.0,90455.0,0.01105522]
[1765632125140,0.01638,90456.0,90454.0,7.258e-05]
[1765632125354,0.24986441,90455.0,90454.0,7.258e-05]
[1765632125700,0.27356441,90455.0,90454.0,7.258e-05]
[1765632126990,0.27517728,90455.0,90454.0,0.00207258]
[1765632127442,0.27517728,90455.0,90454.0,0.00407258]
[1765632127882,0.27517728,90455.0,90454.0,0.00207258]
[1765632129202,0.27517728,90455.0,90454.0,7.258e-05]
[1765632129695,0.38687728,90455.0,90454.0,7.258e-05]
[1765632130062,0.38587728,90455.0,90454.0,7.258e-05]
[1765632130216,0.61589567,90455.0,90454.0,7.258e-05]
[1765632130424,0.72759567,90455.0,90454.0,7.258e-05]
[1765632130632,0.01105937,90421.0,90415.0,0.01106011]
[1765632130821,0.01105937,90421.0,90415.0,0.01144654]
[1765632131030,0.02876,90416.0,90415.0,0.01144654]
[1765632131446,0.05246,90416.0,90415.0,0.00038643]
[1765632136542,0.16477287,90416.0,90415.0,0.0012796]
[1765632137159,0.05407287,90416.0,90415.0,0.0012796]
[1765632138157,0.05507287,90416.0,90415.0,0.0012796]
[1765632142992,0.01499287,90416.0,90415.0,0.0012796]
[1765632143867,0.01338,90416.0,90415.0,0.0012796]
[1765632146294,0.001,90416.0,90415.0,0.15223734]
[1765632147236,0.001,90416.0,90415.0,0.12810734]
[1765632147484,0.03869263,90424.0,90421.0,0.01105937]
[1765632147743,0.03869263,90424.0,90422.0,0.22118267]
[1765632148900,0.03969263,90424.0,90422.0,0.22118267]
[1765632149092,0.04069263,90424.0,90422.0,0.22118267]
[1765632149329,0.002,90424.0,90422.0,0.22118267]
[1765632149653,0.03869263,90423.0,90422.0,0.22118267]
[1765632151446,0.0499554,90423.0,90422.0,0.22118267]
[1765632152051,0.0509554,90423.0,90422.0,0.22118267]
[1765632154192,0.0739454,90423.0,90422.0,0.22118267]
[1765632154331,0.0892354,90423.0,90422.0,0.22118267]
[1765632154526,0.0892354,90423.0,90422.0,0.22186738]
[1765632155802,0.0662454,90423.0,90422.0,0.22186738]
[1765632160269,0.0509554,90423.0,90422.0,0.22186738]
[1765632164239,0.0509554,90423.0,90422.0,0.33256512]
[1765632164868,0.0509554,90423.0,90422.0,0.22186738]
[1765632165730,0.05105083,90423.0,90422.0,0.22186738]
[1765632173375,0.04069263,90423.0,90422.0,0.22186738]
[1765632173538,0.05105083,90423.0,90422.0,0.22186738]
[1765632173859,0.04069263,90423.0,90422.0,0.22186738]
[1765632174087,0.05105083,90423.0,90422.0,0.22186738]
[1765632174290,0.04069263,90423.0,90422.0,0.22186738]
[1765632184637,0.002,90423.0,90422.0,0.22186738]
[1765632194289,0.05484,90423.0,90422.0,0.22186981]
[1765632194427,0.05484,90423.0,90422.0,0.00068471]
[1765632194428,0.32272336,90423.0,90422.0,0.00068471]
[1765632194642,0.40577553,90423.0,90422.0,0.00068471]
[1765632195344,0.29507553,90423.0,90422.0,0.00068471]
[1765632216608,0.27763553,90423.0,90422.0,0.00068471]
[1765632222743,0.67884315,90423.0,90422.0,0.00068471]
[1765632223066,0.73922322,90423.0,90422.0,4.71e-06]
[1765632223241,0.77264015,90423.0,90422.0,4.71e-06]
[1765632223782,0.77164015,90423.0,90422.0,4.71e-06]
[1765632224182,0.78908015,90423.0,90422.0,4.71e-06]
[1765632224787,0.78808015,90423.0,90422.0,4.71e-06]
[1765632225200,0.79008015,90423.0,90422.0,4.71e-06]
[1765632225594,0.79108015,90423.0,90422.0,4.71e-06]
[1765632225927,0.79008015,90423.0,90422.0,4.71e-06]
[1765632226482,0.0110628,90393.0,90382.0,0.01106414]
[1765632226615,0.02792,90391.0,90390.0,0.00027258]
[1765632227021,0.05164,90391.0,90390.0,0.00122567]
[1765632229863,0.05164,90391.0,90390.0,0.00222567]
[1765632231953,0.22124395,90398.0,90393.0,0.0110628]
[1765632232088,0.01106206,90399.0,90393.0,0.0110628]
[1765632232089,0.02005231,90397.0,90393.0,0.0110628]
[1765632232294,0.01106231,90397.0,90393.0,0.0110628]
[1765632232493,0.23230994,90397.0,90391.0,0.238864]
[1765632232950,0.23230994,90397.0,90391.0,0.01760304]
[1765632233160,0.01106268,90394.0,90390.0,0.02239953]
[1765632233783,0.03869263,90391.0,90390.0,0.02239953]
[1765632235628,0.03869263,90391.0,90390.0,0.01133636]
[1765632236175,0.03869263,90391.0,90390.0,0.01333636]
[1765632236575,0.29909359,90391.0,90390.0,0.01333636]
[1765632236875,0.29909359,90391.0,90390.0,0.00227258]
[1765632256477,0.25995359,90391.0,90390.0,0.00227258]
[1765632256608,0.03869263,90391.0,90390.0,0.00227258]
[1765632256811,0.03869263,90391.0,90390.0,0.00322567]
[1765632257672,0.01106243,90396.0,90390.0,0.00322567]
[1765632257673,0.01106243,90396.0,90393.0,0.0110628]
[1765632257813,0.03869263,90394.0,90393.0,0.0176028]
[1765632259079,0.03869263,90394.0,90393.0,0.23885887]